[Event "Titled Tuesday Blitz December 13 Late 2022"]
[White "Pham, Khoi"]
[Black "Shapiro, Daniel"]
[WhiteFideId "1054988"]
[BlackFideId "2001780"]
[WhiteElo "2517"]
[BlackElo "2368"]
[Result "1-0"]
[Round "02"]
[TimeControl "180+1"]
[Date "2022.12.14"]
[WhiteClock "0:00:09"]
[BlackClock "0:00:04"]

1. d4 {[%clk 0:03:00]}  Nf6 {[%clk 0:02:56]} 2. c4 {[%clk 0:03:00]}  e6 {[%clk 0:02:56]} 3. Nc3 {[%clk 0:03:00]}  Bb4 {[%clk 0:02:56]} 4. Qc2 {[%clk 0:03:00]}  d5 {[%clk 0:02:53]} 5. Bg5 {[%clk 0:02:59]}  Nbd7 {[%clk 0:02:48]} 6. cxd5 {[%clk 0:02:58]}  exd5 {[%clk 0:02:47]} 7. e3 {[%clk 0:02:58]}  c6 {[%clk 0:02:45]} 8. Bd3 {[%clk 0:02:58]}  h6 {[%clk 0:02:43]} 9. Bh4 {[%clk 0:02:57]}  Bd6 {[%clk 0:02:43]} 10. Nge2 {[%clk 0:02:57]}  O-O {[%clk 0:02:38]} 11. h3 {[%clk 0:02:55]}  Re8 {[%clk 0:02:35]} 12. O-O {[%clk 0:02:55]}  Nf8 {[%clk 0:02:23]} 13. e4 {[%clk 0:02:51]}  dxe4 {[%clk 0:02:20]} 14. Nxe4 {[%clk 0:02:51]}  Be7 {[%clk 0:02:21]} 15. Bg3 {[%clk 0:02:41]}  Ne6 {[%clk 0:02:14]} 16. Rad1 {[%clk 0:02:11]}  Nd5 {[%clk 0:01:53]} 17. a3 {[%clk 0:02:06]}  a5 {[%clk 0:01:52]} 18. Nc5 {[%clk 0:02:05]}  Qb6 {[%clk 0:01:37]} 19. Rc1 {[%clk 0:01:43]}  Bg5 {[%clk 0:01:23]} 20. Rb1 {[%clk 0:01:30]}  Be7 {[%clk 0:00:38]} 21. b4 {[%clk 0:01:22]}  axb4 {[%clk 0:00:32]} 22. axb4 {[%clk 0:01:23]}  Nxb4 {[%clk 0:00:32]} 23. Qc4 {[%clk 0:01:23]}  Nxd4 {[%clk 0:00:13]} 24. Nxd4 {[%clk 0:00:27]}  Qxc5 {[%clk 0:00:12]} 25. Rfe1 {[%clk 0:00:27]}  Qxc4 {[%clk 0:00:09]} 26. Bxc4 {[%clk 0:00:28]}  Nd5 {[%clk 0:00:07]} 27. Bxd5 {[%clk 0:00:19]}  cxd5 {[%clk 0:00:07]} 28. Bd6 {[%clk 0:00:20]}  Kf8 {[%clk 0:00:07]} 29. Rxe7 {[%clk 0:00:18]}  Rxe7 {[%clk 0:00:06]} 30. Re1 {[%clk 0:00:18]}  Be6 {[%clk 0:00:06]} 31. Nxe6+ {[%clk 0:00:18]}  fxe6 {[%clk 0:00:06]} 32. Rxe6 {[%clk 0:00:18]}  Re8 {[%clk 0:00:07]} 33. Bxe7+ {[%clk 0:00:17]}  Rxe7 {[%clk 0:00:07]} 34. Rd6 {[%clk 0:00:17]}  Re5 {[%clk 0:00:06]} 35. f4 {[%clk 0:00:17]}  Re4 {[%clk 0:00:05]} 36. g3 {[%clk 0:00:17]}  d4 {[%clk 0:00:05]} 37. Kf2 {[%clk 0:00:18]}  Ke7 {[%clk 0:00:04]} 38. Rd5 {[%clk 0:00:17]}  Re6 {[%clk 0:00:03]} 39. Rxd4 {[%clk 0:00:16]}  b5 {[%clk 0:00:03]} 40. Rd5 {[%clk 0:00:16]}  Rb6 {[%clk 0:00:03]} 41. Ke3 {[%clk 0:00:16]}  b4 {[%clk 0:00:04]} 42. Rd2 {[%clk 0:00:16]}  Ke6 {[%clk 0:00:03]} 43. Rb2 {[%clk 0:00:16]}  h5 {[%clk 0:00:03]} 44. Kd4 {[%clk 0:00:16]}  Kf5 {[%clk 0:00:03]} 45. Ke3 {[%clk 0:00:11]}  g5 {[%clk 0:00:03]} 46. fxg5 {[%clk 0:00:10]}  Kxg5 {[%clk 0:00:04]} 47. Kd4 {[%clk 0:00:11]}  Kf5 {[%clk 0:00:04]} 48. Rf2+ {[%clk 0:00:11]}  Kg5 {[%clk 0:00:04]} 49. Kc4 {[%clk 0:00:09]}  h4 {[%clk 0:00:04]} 50. g4 {[%clk 0:00:08]}  b3 {[%clk 0:00:04]} 51. Kc3 {[%clk 0:00:08]}  Kg6 {[%clk 0:00:03]} 52. Rb2 {[%clk 0:00:08]}  Kg5 {[%clk 0:00:03]} 53. Rxb3 {[%clk 0:00:08]}  Rc6+ {[%clk 0:00:03]} 54. Kd3 {[%clk 0:00:08]}  Kf4 {[%clk 0:00:03]} 55. Ke2 {[%clk 0:00:07]}  Rd6 {[%clk 0:00:03]} 56. Rf3+ {[%clk 0:00:07]}  Kg5 {[%clk 0:00:03]} 57. Rf5+ {[%clk 0:00:07]}  Kg6 {[%clk 0:00:03]} 58. Rh5 {[%clk 0:00:06]}  Re6+ {[%clk 0:00:04]} 59. Kf2 {[%clk 0:00:06]}  Ra6 {[%clk 0:00:03]} 60. Rxh4 {[%clk 0:00:07]}  Ra2+ {[%clk 0:00:04]} 61. Ke3 {[%clk 0:00:07]}  Ra3+ {[%clk 0:00:04]} 62. Kd4 {[%clk 0:00:07]}  Ra4+ {[%clk 0:00:05]} 63. Kc5 {[%clk 0:00:07]}  Ra5+ {[%clk 0:00:05]} 64. Kb4 {[%clk 0:00:07]}  Ra2 {[%clk 0:00:05]} 65. Rh5 {[%clk 0:00:08]}  Rg2 {[%clk 0:00:05]} 66. Kc3 {[%clk 0:00:07]}  Rg3+ {[%clk 0:00:04]} 67. Kd4 {[%clk 0:00:07]}  Rg1 {[%clk 0:00:05]} 68. Ke4 {[%clk 0:00:07]}  Re1+ {[%clk 0:00:05]} 69. Kf3 {[%clk 0:00:07]}  Rf1+ {[%clk 0:00:05]} 70. Kg2 {[%clk 0:00:07]}  Ra1 {[%clk 0:00:05]} 71. Rb5 {[%clk 0:00:07]}  Ra2+ {[%clk 0:00:04]} 72. Kg3 {[%clk 0:00:08]}  Ra3+ {[%clk 0:00:03]} 73. Kh4 {[%clk 0:00:08]}  Rc3 {[%clk 0:00:03]} 74. Rb6+ {[%clk 0:00:08]}  Kg7 {[%clk 0:00:04]} 75. g5 {[%clk 0:00:09]} 1-0


[Site "https://www.chess.com"]

[Event "Titled Tuesday Blitz December 13 Late 2022"]
[White "Pichot, Alan"]
[Black "Melikyan, Gnel"]
[WhiteFideId "110973"]
[BlackFideId "54109990"]
[WhiteElo "2561"]
[BlackElo "2138"]
[Result "0-1"]
[Round "02"]
[TimeControl "180+1"]
[Date "2022.12.13"]
[WhiteClock "0:00:02"]
[BlackClock "0:00:16"]

1. c4 {[%clk 0:03:00]}  Nf6 {[%clk 0:02:56]} 2. Nc3 {[%clk 0:02:58]}  g6 {[%clk 0:02:51]} 3. e4 {[%clk 0:02:58]}  d6 {[%clk 0:02:52]} 4. d4 {[%clk 0:02:58]}  Bg7 {[%clk 0:02:52]} 5. h3 {[%clk 0:02:59]}  O-O {[%clk 0:02:53]} 6. Be3 {[%clk 0:03:00]}  e5 {[%clk 0:02:51]} 7. d5 {[%clk 0:02:59]}  Nh5 {[%clk 0:02:50]} 8. Be2 {[%clk 0:02:48]}  Nf4 {[%clk 0:02:49]} 9. Bf3 {[%clk 0:02:49]}  f5 {[%clk 0:02:08]} 10. g3 {[%clk 0:02:48]}  fxe4 {[%clk 0:02:01]} 11. Nxe4 {[%clk 0:02:49]}  Bf5 {[%clk 0:01:54]} 12. Ne2 {[%clk 0:01:48]}  Nxe2 {[%clk 0:01:34]} 13. Qxe2 {[%clk 0:01:45]}  Nd7 {[%clk 0:01:34]} 14. Bg2 {[%clk 0:01:44]}  b6 {[%clk 0:01:28]} 15. O-O {[%clk 0:01:43]}  Nc5 {[%clk 0:01:26]} 16. Nxc5 {[%clk 0:01:26]}  bxc5 {[%clk 0:01:24]} 17. g4 {[%clk 0:01:27]}  Bd7 {[%clk 0:01:19]} 18. Be4 {[%clk 0:01:27]}  Qh4 {[%clk 0:01:12]} 19. Kg2 {[%clk 0:01:27]}  Bh6 {[%clk 0:01:06]} 20. f3 {[%clk 0:01:01]}  Bxe3 {[%clk 0:00:56]} 21. Qxe3 {[%clk 0:01:02]}  Rf4 {[%clk 0:00:56]} 22. Qe1 {[%clk 0:01:01]}  Qg5 {[%clk 0:00:48]} 23. Rb1 {[%clk 0:00:59]}  h5 {[%clk 0:00:43]} 24. h4 {[%clk 0:00:46]}  Qf6 {[%clk 0:00:38]} 25. g5 {[%clk 0:00:37]}  Qf7 {[%clk 0:00:37]} 26. b4 {[%clk 0:00:32]}  Rf8 {[%clk 0:00:31]} 27. bxc5 {[%clk 0:00:31]}  Bf5 {[%clk 0:00:27]} 28. cxd6 {[%clk 0:00:25]}  cxd6 {[%clk 0:00:26]} 29. a4 {[%clk 0:00:03]}  Qd7 {[%clk 0:00:17]} 30. Qg3 {[%clk 0:00:03]}  Bxe4 {[%clk 0:00:15]} 31. fxe4 {[%clk 0:00:02]}  Rg4 {[%clk 0:00:15]} 32. Rxf8+ {[%clk 0:00:02]}  Kxf8 {[%clk 0:00:16]} 33. Rf1+ {[%clk 0:00:02]}  Kg7 {[%clk 0:00:16]} 0-1


[Site "https://www.chess.com"]

[Event "Titled Tuesday Blitz December 13 Late 2022"]
[White "Postnikov, Daniil"]
[Black "Torres Boch, Jose Francisco"]
[WhiteFideId "4166329"]
[BlackFideId "2278383"]
[WhiteElo "2261"]
[BlackElo "2073"]
[Result "1-0"]
[Round "02"]
[TimeControl "180+1"]
[Date "2022.12.14"]
[WhiteClock "0:00:15"]
[BlackClock "0:00:02"]

1. e4 {[%clk 0:03:00]}  c5 {[%clk 0:02:56]} 2. a3 {[%clk 0:02:58]}  e6 {[%clk 0:02:54]} 3. b4 {[%clk 0:02:54]}  cxb4 {[%clk 0:02:54]} 4. axb4 {[%clk 0:02:02]}  Bxb4 {[%clk 0:02:55]} 5. c3 {[%clk 0:02:02]}  Be7 {[%clk 0:02:55]} 6. d4 {[%clk 0:02:03]}  Nf6 {[%clk 0:02:48]} 7. e5 {[%clk 0:02:02]}  Nd5 {[%clk 0:02:48]} 8. Qg4 {[%clk 0:02:03]}  g6 {[%clk 0:02:37]} 9. Bh6 {[%clk 0:02:02]}  f5 {[%clk 0:02:27]} 10. exf6 {[%clk 0:01:57]}  Nxf6 {[%clk 0:02:25]} 11. Qd1 {[%clk 0:01:58]}  Nc6 {[%clk 0:02:16]} 12. Bd3 {[%clk 0:01:57]}  d6 {[%clk 0:02:10]} 13. Nf3 {[%clk 0:01:57]}  e5 {[%clk 0:02:09]} 14. O-O {[%clk 0:01:22]}  e4 {[%clk 0:02:08]} 15. d5 {[%clk 0:01:22]}  exf3 {[%clk 0:01:52]} 16. dxc6 {[%clk 0:01:22]}  fxg2 {[%clk 0:01:51]} 17. Re1 {[%clk 0:01:21]}  bxc6 {[%clk 0:01:45]} 18. Bg7 {[%clk 0:01:19]}  Kf7 {[%clk 0:01:43]} 19. Bxh8 {[%clk 0:01:18]}  Qxh8 {[%clk 0:01:43]} 20. Nd2 {[%clk 0:01:05]}  Nd5 {[%clk 0:01:34]} 21. Ne4 {[%clk 0:01:01]}  Bf5 {[%clk 0:01:25]} 22. Bc4 {[%clk 0:00:58]}  Be6 {[%clk 0:01:03]} 23. Qf3+ {[%clk 0:00:50]}  Kg8 {[%clk 0:00:57]} 24. Nxd6 {[%clk 0:00:46]}  Rf8 {[%clk 0:00:32]} 25. Qe4 {[%clk 0:00:42]}  Rf6 {[%clk 0:00:24]} 26. Ne8 {[%clk 0:00:37]}  Rxf2 {[%clk 0:00:19]} 27. Qxe6+ {[%clk 0:00:36]}  Rf7 {[%clk 0:00:18]} 28. Bxd5 {[%clk 0:00:33]}  Bc5+ {[%clk 0:00:18]} 29. Kxg2 {[%clk 0:00:31]}  cxd5 {[%clk 0:00:18]} 30. Rxa7 {[%clk 0:00:30]}  Bxa7 {[%clk 0:00:13]} 31. Nd6 {[%clk 0:00:30]}  Qf6 {[%clk 0:00:07]} 32. Nxf7 {[%clk 0:00:18]}  Qxf7 {[%clk 0:00:08]} 33. Qe8+ {[%clk 0:00:14]}  Qxe8 {[%clk 0:00:06]} 34. Rxe8+ {[%clk 0:00:15]}  Kf7 {[%clk 0:00:06]} 35. Rd8 {[%clk 0:00:16]}  Ke6 {[%clk 0:00:03]} 36. Rh8 {[%clk 0:00:15]}  Be3 {[%clk 0:00:02]} 37. Rxh7 {[%clk 0:00:15]}  Bd2 {[%clk 0:00:02]} 38. Rc7 {[%clk 0:00:15]}  Ke5 {[%clk 0:00:02]} 39. Kf3 {[%clk 0:00:15]} 1-0


[Site "https://www.chess.com"]

[Event "Titled Tuesday Blitz December 13 Late 2022"]
[White "Rian, Kapriaga"]
[Black "Aggelis, Nikolaos"]
[WhiteFideId "7103263"]
[BlackFideId "4213220"]
[WhiteElo "2284"]
[BlackElo "2189"]
[Result "0-1"]
[Round "02"]
[TimeControl "180+1"]
[Date "2022.12.14"]
[WhiteClock "0:00:01"]
[BlackClock "0:00:23"]

1. d4 {[%clk 0:03:00]}  f5 {[%clk 0:02:51]} 2. Nc3 {[%clk 0:02:59]}  Nf6 {[%clk 0:02:48]} 3. Bg5 {[%clk 0:03:00]}  d5 {[%clk 0:02:41]} 4. e3 {[%clk 0:02:59]}  Ne4 {[%clk 0:02:31]} 5. Bf4 {[%clk 0:02:50]}  Nxc3 {[%clk 0:02:24]} 6. bxc3 {[%clk 0:02:49]}  c6 {[%clk 0:02:21]} 7. c4 {[%clk 0:02:46]}  e6 {[%clk 0:02:17]} 8. c3 {[%clk 0:02:34]}  Bd6 {[%clk 0:02:16]} 9. Bxd6 {[%clk 0:02:28]}  Qxd6 {[%clk 0:02:17]} 10. Nf3 {[%clk 0:02:27]}  Nd7 {[%clk 0:02:17]} 11. Qb3 {[%clk 0:02:24]}  O-O {[%clk 0:02:17]} 12. Bd3 {[%clk 0:02:22]}  b6 {[%clk 0:02:15]} 13. cxd5 {[%clk 0:02:18]}  exd5 {[%clk 0:02:12]} 14. O-O {[%clk 0:02:16]}  Nf6 {[%clk 0:02:12]} 15. c4 {[%clk 0:02:13]}  Be6 {[%clk 0:02:05]} 16. Rfc1 {[%clk 0:02:08]}  Rac8 {[%clk 0:01:55]} 17. c5 {[%clk 0:02:07]}  Qc7 {[%clk 0:01:46]} 18. a4 {[%clk 0:01:59]}  Nd7 {[%clk 0:01:38]} 19. cxb6 {[%clk 0:01:54]}  axb6 {[%clk 0:01:35]} 20. Ra2 {[%clk 0:01:54]}  Qd6 {[%clk 0:01:34]} 21. Rac2 {[%clk 0:01:47]}  Rc7 {[%clk 0:01:32]} 22. Ne5 {[%clk 0:01:38]}  Rfc8 {[%clk 0:01:18]} 23. Nxd7 {[%clk 0:01:37]}  Qxd7 {[%clk 0:01:17]} 24. Qxb6 {[%clk 0:01:35]}  f4 {[%clk 0:01:07]} 25. a5 {[%clk 0:01:25]}  Bf5 {[%clk 0:01:06]} 26. Bxf5 {[%clk 0:01:22]}  Qxf5 {[%clk 0:01:06]} 27. exf4 {[%clk 0:01:12]}  Qxf4 {[%clk 0:01:06]} 28. g3 {[%clk 0:01:10]}  Qf3 {[%clk 0:01:00]} 29. a6 {[%clk 0:01:01]}  h6 {[%clk 0:01:00]} 30. a7 {[%clk 0:00:56]}  Qa3 {[%clk 0:00:59]} 31. Rxc6 {[%clk 0:00:36]}  Qxc1+ {[%clk 0:00:58]} 32. Rxc1 {[%clk 0:00:35]}  Rxc1+ {[%clk 0:00:59]} 33. Kg2 {[%clk 0:00:35]}  Ra8 {[%clk 0:00:54]} 34. Qe6+ {[%clk 0:00:26]}  Kh8 {[%clk 0:00:50]} 35. Qxd5 {[%clk 0:00:19]}  Rxa7 {[%clk 0:00:50]} 36. Qf5 {[%clk 0:00:14]}  Rcc7 {[%clk 0:00:48]} 37. d5 {[%clk 0:00:13]}  Rf7 {[%clk 0:00:48]} 38. Qe6 {[%clk 0:00:12]}  Rae7 {[%clk 0:00:47]} 39. Qg6 {[%clk 0:00:11]}  Rf6 {[%clk 0:00:45]} 40. Qc2 {[%clk 0:00:09]}  Rd6 {[%clk 0:00:40]} 41. Qb3 {[%clk 0:00:05]}  Red7 {[%clk 0:00:39]} 42. Qb8+ {[%clk 0:00:05]}  Kh7 {[%clk 0:00:39]} 43. Qb1+ {[%clk 0:00:05]}  Kg8 {[%clk 0:00:39]} 44. Qf5 {[%clk 0:00:03]}  Rxd5 {[%clk 0:00:39]} 45. Qf4 {[%clk 0:00:03]}  Rf7 {[%clk 0:00:36]} 46. Qc4 {[%clk 0:00:03]}  Rdf5 {[%clk 0:00:35]} 47. Qd4 {[%clk 0:00:03]}  Rf3 {[%clk 0:00:34]} 48. Qd8+ {[%clk 0:00:02]}  Kh7 {[%clk 0:00:32]} 49. Qd4 {[%clk 0:00:02]}  R3f5 {[%clk 0:00:30]} 50. Qe4 {[%clk 0:00:02]}  Kg8 {[%clk 0:00:29]} 51. h4 {[%clk 0:00:03]}  Rxf2+ {[%clk 0:00:28]} 52. Kh3 {[%clk 0:00:03]}  Rf1 {[%clk 0:00:27]} 53. Qd5 {[%clk 0:00:03]}  Rf3 {[%clk 0:00:26]} 54. Qe4 {[%clk 0:00:03]}  R3f6 {[%clk 0:00:26]} 55. Qd5 {[%clk 0:00:03]}  Rf5 {[%clk 0:00:26]} 56. Qe4 {[%clk 0:00:03]}  Kh8 {[%clk 0:00:26]} 57. Qe8+ {[%clk 0:00:02]}  Kh7 {[%clk 0:00:26]} 58. Qe4 {[%clk 0:00:03]}  Kh8 {[%clk 0:00:26]} 59. Qe8+ {[%clk 0:00:03]}  Rf8 {[%clk 0:00:27]} 60. Qe4 {[%clk 0:00:03]}  Rf3 {[%clk 0:00:27]} 61. Qd5 {[%clk 0:00:03]}  Re3 {[%clk 0:00:27]} 62. Qd4 {[%clk 0:00:03]}  Rff3 {[%clk 0:00:26]} 63. Qd8+ {[%clk 0:00:02]}  Kh7 {[%clk 0:00:26]} 64. Qd6 {[%clk 0:00:02]}  Rxg3+ {[%clk 0:00:26]} 65. Qxg3 {[%clk 0:00:02]}  Rxg3+ {[%clk 0:00:27]} 66. Kxg3 {[%clk 0:00:03]}  Kg6 {[%clk 0:00:27]} 67. Kg4 {[%clk 0:00:03]}  Kf6 {[%clk 0:00:28]} 68. Kf4 {[%clk 0:00:03]}  g6 {[%clk 0:00:27]} 69. Ke4 {[%clk 0:00:03]}  Ke6 {[%clk 0:00:26]} 70. Kf4 {[%clk 0:00:02]}  Kd5 {[%clk 0:00:26]} 71. h5 {[%clk 0:00:01]}  g5+ {[%clk 0:00:26]} 72. Kf5 {[%clk 0:00:01]}  Kd6 {[%clk 0:00:23]} 0-1


[Site "https://www.chess.com"]

[Event "Titled Tuesday Blitz December 13 Late 2022"]
[White "Rustemov, Alexander"]
[Black "Suarez Uriel, Adrian"]
[WhiteFideId "4119002"]
[BlackFideId "22230874"]
[WhiteElo "2765"]
[BlackElo "2331"]
[Result "1-0"]
[Round "02"]
[TimeControl "180+1"]
[Date "2022.12.14"]
[WhiteClock "0:01:20"]
[BlackClock "0:01:18"]

1. d4 {[%clk 0:02:56]}  Nf6 {[%clk 0:02:59]} 2. c4 {[%clk 0:02:53]}  e6 {[%clk 0:02:57]} 3. Nf3 {[%clk 0:02:53]}  c5 {[%clk 0:02:56]} 4. d5 {[%clk 0:02:52]}  exd5 {[%clk 0:02:56]} 5. cxd5 {[%clk 0:02:53]}  d6 {[%clk 0:02:56]} 6. Nc3 {[%clk 0:02:54]}  g6 {[%clk 0:02:56]} 7. h3 {[%clk 0:02:54]}  Bg7 {[%clk 0:02:57]} 8. e4 {[%clk 0:02:55]}  O-O {[%clk 0:02:57]} 9. Bd3 {[%clk 0:02:55]}  b5 {[%clk 0:02:57]} 10. Bxb5 {[%clk 0:02:55]}  Nxe4 {[%clk 0:02:52]} 11. Nxe4 {[%clk 0:02:56]}  Qa5+ {[%clk 0:02:52]} 12. Nfd2 {[%clk 0:02:57]}  Qxb5 {[%clk 0:02:50]} 13. Nxd6 {[%clk 0:02:57]}  Qd3 {[%clk 0:02:45]} 14. N2c4 {[%clk 0:02:57]}  Qxd1+ {[%clk 0:02:39]} 15. Kxd1 {[%clk 0:02:57]}  Ba6 {[%clk 0:02:40]} 16. Kc2 {[%clk 0:02:55]}  Nd7 {[%clk 0:02:40]} 17. Rd1 {[%clk 0:02:45]}  Rfd8 {[%clk 0:02:36]} 18. Bf4 {[%clk 0:02:33]}  Rab8 {[%clk 0:02:29]} 19. Rab1 {[%clk 0:02:28]}  Bd4 {[%clk 0:02:20]} 20. Na5 {[%clk 0:02:18]}  Ne5 {[%clk 0:02:08]} 21. Nc6 {[%clk 0:02:12]}  Rxd6 {[%clk 0:01:51]} 22. Nxb8 {[%clk 0:02:10]}  Bc4 {[%clk 0:01:51]} 23. Rxd4 {[%clk 0:02:06]}  cxd4 {[%clk 0:01:48]} 24. Bxe5 {[%clk 0:02:04]}  Rxd5 {[%clk 0:01:47]} 25. Nc6 {[%clk 0:01:35]}  Kf8 {[%clk 0:01:42]} 26. Bxd4 {[%clk 0:01:28]}  Bxa2 {[%clk 0:01:18]} 27. Ra1 {[%clk 0:01:20]} 1-0


[Site "https://www.chess.com"]

[Event "Titled Tuesday Blitz December 13 Late 2022"]
[White "Sailer, Mike"]
[Black "Espinosa, Pedro"]
[WhiteFideId "2012901"]
[BlackFideId "30921066"]
[WhiteElo "2109"]
[BlackElo "2016"]
[Result "0-1"]
[Round "02"]
[TimeControl "180+1"]
[Date "2022.12.14"]
[WhiteClock "0:01:45"]
[BlackClock "0:01:50"]

1. Nf3 {[%clk 0:03:00]}  d5 {[%clk 0:03:00]} 2. c4 {[%clk 0:02:56]}  c6 {[%clk 0:02:59]} 3. g3 {[%clk 0:02:56]}  Nf6 {[%clk 0:02:59]} 4. Bg2 {[%clk 0:02:56]}  e6 {[%clk 0:03:00]} 5. O-O {[%clk 0:02:57]}  Nbd7 {[%clk 0:03:00]} 6. d4 {[%clk 0:02:57]}  dxc4 {[%clk 0:02:56]} 7. a4 {[%clk 0:02:56]}  Be7 {[%clk 0:02:52]} 8. Na3 {[%clk 0:02:54]}  Bxa3 {[%clk 0:02:35]} 9. Rxa3 {[%clk 0:02:53]}  O-O {[%clk 0:02:35]} 10. Qc2 {[%clk 0:02:53]}  c5 {[%clk 0:02:12]} 11. Qxc4 {[%clk 0:02:45]}  cxd4 {[%clk 0:02:12]} 12. Qxd4 {[%clk 0:02:42]}  Qe7 {[%clk 0:02:10]} 13. Rd1 {[%clk 0:02:40]}  Nb6 {[%clk 0:02:05]} 14. a5 {[%clk 0:02:36]}  Nbd5 {[%clk 0:02:03]} 15. e4 {[%clk 0:02:33]}  Nb4 {[%clk 0:01:55]} 16. Rb3 {[%clk 0:01:50]}  Nc6 {[%clk 0:01:53]} 17. Qd6 {[%clk 0:01:46]}  Qxd6 {[%clk 0:01:51]} 18. Rxd6 {[%clk 0:01:46]}  Nxa5 {[%clk 0:01:52]} 19. Rc3 {[%clk 0:01:45]}  Nxe4 {[%clk 0:01:50]} 0-1


[Site "https://www.chess.com"]

[Event "Titled Tuesday Blitz December 13 Late 2022"]
[White "Santos Flores, Alberto"]
[Black "Seletsky, Grigory"]
[WhiteFideId "3601234"]
[BlackFideId "14112191"]
[WhiteElo "2235"]
[BlackElo "2492"]
[Result "1-0"]
[Round "02"]
[TimeControl "180+1"]
[Date "2022.12.14"]
[WhiteClock "0:00:56"]
[BlackClock "0:01:17"]

1. d4 {[%clk 0:03:00]}  d6 {[%clk 0:02:58]} 2. e4 {[%clk 0:02:59]}  Nf6 {[%clk 0:02:58]} 3. Nc3 {[%clk 0:02:59]}  e5 {[%clk 0:02:58]} 4. dxe5 {[%clk 0:02:56]}  dxe5 {[%clk 0:02:57]} 5. Qxd8+ {[%clk 0:02:57]}  Kxd8 {[%clk 0:02:56]} 6. Bc4 {[%clk 0:02:58]}  Be6 {[%clk 0:02:56]} 7. Bxe6 {[%clk 0:02:58]}  fxe6 {[%clk 0:02:57]} 8. f3 {[%clk 0:02:57]}  Nc6 {[%clk 0:02:55]} 9. Be3 {[%clk 0:02:57]}  Bd6 {[%clk 0:02:55]} 10. Nge2 {[%clk 0:02:49]}  Ke7 {[%clk 0:02:55]} 11. Nb5 {[%clk 0:02:44]}  a6 {[%clk 0:02:55]} 12. Nxd6 {[%clk 0:02:43]}  cxd6 {[%clk 0:02:56]} 13. O-O-O {[%clk 0:02:36]}  b5 {[%clk 0:02:49]} 14. Kb1 {[%clk 0:02:34]}  Rab8 {[%clk 0:02:37]} 15. Rd2 {[%clk 0:02:31]}  Rhd8 {[%clk 0:02:36]} 16. Rhd1 {[%clk 0:02:31]}  h6 {[%clk 0:02:34]} 17. h4 {[%clk 0:02:20]}  d5 {[%clk 0:02:22]} 18. Ng3 {[%clk 0:01:48]}  d4 {[%clk 0:02:18]} 19. Bf2 {[%clk 0:01:48]}  b4 {[%clk 0:02:05]} 20. Ne2 {[%clk 0:01:48]}  a5 {[%clk 0:02:04]} 21. Nc1 {[%clk 0:01:41]}  a4 {[%clk 0:02:04]} 22. Nd3 {[%clk 0:01:40]}  g5 {[%clk 0:02:00]} 23. hxg5 {[%clk 0:01:39]}  hxg5 {[%clk 0:02:00]} 24. Bg3 {[%clk 0:01:39]}  Nd7 {[%clk 0:01:55]} 25. Rh1 {[%clk 0:01:37]}  Rh8 {[%clk 0:01:54]} 26. Rdd1 {[%clk 0:01:37]}  Kf6 {[%clk 0:01:51]} 27. Nf2 {[%clk 0:01:30]}  Kg7 {[%clk 0:01:39]} 28. Ng4 {[%clk 0:01:27]}  Rxh1 {[%clk 0:01:37]} 29. Rxh1 {[%clk 0:01:27]}  Rh8 {[%clk 0:01:35]} 30. Rxh8 {[%clk 0:01:27]}  Kxh8 {[%clk 0:01:34]} 31. Kc1 {[%clk 0:01:25]}  Kh7 {[%clk 0:01:32]} 32. Kd2 {[%clk 0:01:25]}  Kg6 {[%clk 0:01:32]} 33. Kd3 {[%clk 0:01:25]}  Kf7 {[%clk 0:01:22]} 34. Kc4 {[%clk 0:01:25]}  Ke7 {[%clk 0:01:22]} 35. Kb5 {[%clk 0:01:19]}  b3 {[%clk 0:01:21]} 36. cxb3 {[%clk 0:01:11]}  axb3 {[%clk 0:01:20]} 37. a4 {[%clk 0:01:08]}  d3 {[%clk 0:01:18]} 38. Kxc6 {[%clk 0:00:56]}  d2 {[%clk 0:01:17]} 39. Ne3 {[%clk 0:00:56]} 1-0


[Site "https://www.chess.com"]